bitfinex-derivatives/quotes_SOLF0:USTF0_20250221
["timestamp","ask_amount","ask_price","bid_price","bid_amount"]
[1740122051943,0.03729006,175.92,175.91,10.05928506]
[1740122052345,0.03729006,175.92,175.88,4.605e-05]
[1740122052346,5.6841,175.89,175.88,4.605e-05]
[1740122052541,5.6841,175.89,175.88,10.05933111]
[1740122063849,5.6841,175.89,175.88,4.605e-05]
[1740122073163,13.72757512,175.92,175.88,4.605e-05]
[1740122073559,5.6841,175.89,175.88,4.605e-05]
[1740122096776,5.687,175.8,175.79,0.51984038]
[1740122097473,10.05928506,175.82,175.77,10.05928506]
[1740122097677,5.6879,175.78,175.75,10.05928506]
[1740122097878,0.04268077,175.79,175.75,10.09894393]
[1740122099480,5.72998077,175.79,175.75,10.09894393]
[1740122100282,0.04268077,175.79,175.77,10.05928506]
[1740122104084,5.6857,175.84,175.8,5.6867]
[1740122104285,10.05928506,175.87,175.8,5.6867]
[1740122104481,10.05928506,175.87,175.81,10.05928506]
[1740122104683,5.686,175.84,175.81,10.05928506]
[1740122105284,5.72272143,175.84,175.81,10.1012631]
[1740122106185,0.03672143,175.84,175.81,10.1012631]
[1740122106484,5.6861,175.83,175.81,10.1012631]
[1740122110090,5.6863,175.82,175.81,10.1012631]
[1740122110287,5.6863,175.82,175.81,0.04197804]
[1740122110690,0.03672143,175.84,175.81,0.04197804]
[1740122110888,5.6861,175.83,175.81,0.04197804]
[1740122111990,5.6863,175.82,175.81,0.04197804]
[1740122113084,5.6861,175.83,175.81,10.1012631]
[1740122113283,0.03672143,175.84,175.81,10.1012631]
[1740122114390,0.03672143,175.84,175.81,15.7876631]
[1740122114591,9.2152,175.93,175.83,10.05928506]
[1740122114793,10.05928506,175.91,175.85,10.05928506]
[1740122115086,10.05928506,175.91,175.85,15.74468506]
[1740122115689,193.04032339,175.89,175.85,15.78755309]
[1740122115887,193.04032339,175.89,175.87,10.05928506]
[1740122116089,0.04032339,175.89,175.87,10.05928506]
[1740122118498,5.6844,175.88,175.87,10.05928506]
[1740122118694,0.04032339,175.89,175.87,10.05928506]
[1740122119797,5.72462339,175.89,175.87,10.05928506]
[1740122120498,5.6844,175.88,175.87,10.05928506]
[1740122120997,5.685,175.86,175.85,10.10215309]
[1740122125596,5.6845,175.88,175.85,10.10215309]
[1740122126495,0.04032339,175.89,175.87,10.05928506]
[1740122126695,0.04032339,175.89,175.88,5.6844]
[1740122128000,0.04032339,175.89,175.87,15.74378506]
[1740122129401,5.72442339,175.89,175.87,10.05928506]
[1740122129601,0.04032339,175.89,175.87,10.05928506]
[1740122131399,5.72442339,175.89,175.87,10.05928506]
[1740122132099,0.04032339,175.89,175.87,10.05928506]
[1740122133205,5.72442339,175.89,175.87,10.05928506]
[1740122133701,0.04032339,175.89,175.87,10.05928506]
[1740122134806,5.72442339,175.89,175.87,10.05928506]
[1740122136806,5.6844,175.88,175.87,10.05928506]
[1740122142312,5.72452339,175.89,175.87,10.05928506]
[1740122144110,0.04032339,175.89,175.87,10.05928506]
[1740122144310,0.04032339,175.89,175.88,5.6844]
[1740122149017,10.36671765,175.98,175.93,5.6828]
[1740122149320,10.36671765,175.98,175.93,15.74208506]
[1740122149721,20.42600271,176.0,175.93,15.74208506]
[1740122149916,20.42600271,176.0,175.95,0.04065831]
[1740122150115,5.6818,175.97,175.95,0.04065831]
[1740122151124,5.6818,175.96,175.95,10.09994337]
[1740122159530,15.74108506,175.96,175.95,5.831e-05]
[1740122173044,5.6847,175.88,175.85,10.05928506]
[1740122173245,10.05928506,175.91,175.85,10.05928506]
[1740122173643,10.05928506,175.89,175.83,10.05928506]
[1740122173841,10.05928506,175.89,175.82,27.27040326]
[1740122174144,5.6853,175.86,175.84,0.04083336]
[1740122175746,5.72209283,175.87,175.84,0.04083336]
[1740122177048,0.03729283,175.87,175.84,0.04083336]
[1740122177243,5.685,175.86,175.84,0.04083336]
[1740122177447,10.09657789,175.87,175.84,3.336e-05]
[1740122177648,5.6854,175.85,175.84,3.336e-05]
[1740122195560,15.74468506,175.85,175.84,3.336e-05]
[1740122212769,10.05928506,175.85,175.72,15.40968506]
[1740122212975,10.05928506,175.79,175.72,15.40968506]
[1740122213871,0.03659139,175.77,175.74,0.0412794]
[1740122215289,0.03659139,175.77,175.74,10.10056446]
[1740122216987,0.03659139,175.77,175.74,15.78946446]
[1740122218690,5.72459139,175.77,175.74,15.78946446]
[1740122220694,5.6883,175.76,175.74,10.10056446]
[1740122220993,0.03659139,175.77,175.74,10.10056446]
[1740122221396,5.72479139,175.77,175.74,10.10056446]
[1740122221598,5.72479139,175.77,175.74,15.78946446]
[1740122221897,5.6884,175.76,175.74,10.10056446]
[1740122224800,0.03659139,175.77,175.74,10.10056446]
[1740122225000,0.03659139,175.77,175.74,0.0412794]
[1740122225001,5.6886,175.75,175.74,0.0412794]
[1740122227999,5.6883,175.76,175.74,0.0412794]
[1740122229302,0.03659139,175.77,175.74,0.0412794]
[1740122229303,5.72469139,175.77,175.74,0.0412794]
[1740122229704,0.03659139,175.77,175.74,0.0412794]
[1740122230603,5.6883,175.76,175.74,0.0412794]
[1740122230800,0.03659139,175.77,175.74,0.0412794]
[1740122232505,5.6885,175.76,175.74,0.0412794]
[1740122233707,5.6886,175.75,175.74,0.0412794]
[1740122234903,15.74788506,175.75,175.74,7.94e-05]
[1740122235403,5.6905,175.69,175.68,0.52018357]
[1740122236408,10.05928506,175.69,175.64,10.05928506]
[1740122236604,10.05928506,175.69,175.67,0.04328996]
[1740122236903,5.691,175.68,175.67,0.04328996]
[1740122237109,10.05928506,175.69,175.67,0.04328996]
[1740122237708,0.0403538,175.7,175.67,0.04328996]
[1740122238907,5.7306538,175.7,175.67,0.04328996]
[1740122240213,0.0403538,175.7,175.67,0.04328996]
[1740122240913,0.0403538,175.7,175.67,5.73438996]
[1740122241816,0.0403538,175.7,175.67,0.04328996]
[1740122244318,5.7306538,175.7,175.67,0.04328996]
[1740122246614,5.6909,175.68,175.67,0.04328996]
[1740122248615,5.6922,175.65,175.6,7.4678]
[1740122248820,15.75148506,175.65,175.6,7.4678]
[1740122249016,10.05928506,175.65,175.57,13.54518506]
[1740122249219,5.6929,175.62,175.58,5.6941]
[1740122249415,5.6929,175.62,175.57,13.54518506]
[1740122249721,5.6929,175.62,175.57,19.23938506]
[1740122250020,0.0387037,175.61,175.58,0.04036224]
[1740122250414,5.7320037,175.61,175.58,0.04036224]
[1740122250614,0.0387037,175.61,175.58,0.04036224]
[1740122252719,5.7319037,175.61,175.58,0.04036224]
[1740122253319,0.0387037,175.61,175.58,0.04036224]
[1740122253915,0.0387037,175.61,175.59,15.75278506]
[1740122254313,0.0387037,175.61,175.59,10.05928506]
[1740122256213,0.0387037,175.61,175.58,0.04036224]
[1740122256818,5.7321037,175.61,175.58,0.04036224]
[1740122257218,0.0387037,175.61,175.58,0.04036224]
[1740122257725,10.09798876,175.61,175.58,0.04036224]
[1740122257919,10.05928506,175.59,175.58,0.04036224]
[1740122258223,15.75308506,175.59,175.58,0.04036224]
[1740122263019,10.05928506,175.59,175.58,0.04036224]
[1740122265020,15.75308506,175.59,175.58,0.04036224]
[1740122266619,10.05928506,175.59,175.58,0.04036224]
[1740122267923,15.75308506,175.59,175.58,0.04036224]
[1740122276935,0.0387037,175.61,175.58,0.04036224]
[1740122277738,0.0387037,175.61,175.59,5.6936]
[1740122280642,0.0387037,175.61,175.58,0.04036224]
[1740122281030,10.09798876,175.61,175.58,0.04036224]
[1740122282141,5.6938,175.59,175.58,0.04036224]
[1740122288353,10.09798876,175.61,175.58,0.04036224]
[1740122289558,5.6935,175.6,175.58,0.04036224]
[1740122290057,15.79138876,175.61,175.58,5.73446224]
[1740122290448,0.0387037,175.61,175.58,0.04036224]
[1740122291457,0.0387037,175.61,175.59,5.6936]
[1740122294858,0.0387037,175.61,175.58,0.04036224]
[1740122295059,0.0387037,175.61,175.58,5.73426224]
[1740122295458,0.0387037,175.61,175.58,0.04036224]
[1740122295658,0.0387037,175.61,175.59,5.6937]
[1740122296163,5.7319037,175.61,175.58,5.73426224]
[1740122297066,0.0387037,175.61,175.58,0.04036224]
[1740122297365,10.09798876,175.61,175.58,0.04036224]
[1740122297664,10.05928506,175.59,175.58,0.04036224]
[1740122298060,15.75308506,175.59,175.58,0.04036224]
[1740122298558,10.09798876,175.61,175.58,0.04036224]
[1740122298762,0.0387037,175.61,175.58,0.04036224]
[1740122299662,5.6938,175.59,175.58,0.04036224]
[1740122299863,15.75308506,175.59,175.58,0.04036224]
[1740122300362,193.0,175.58,175.48,29.38089868]
[1740122300562,10.05928506,175.52,175.44,10.05928506]
[1740122301066,5.6968,175.5,175.44,10.05928506]
[1740122301668,5.73946225,175.5,175.46,0.78809314]
[1740122302062,0.04266225,175.5,175.46,0.78809314]
[1740122303267,10.05928506,175.48,175.46,0.03889997]
[1740122303469,10.05928506,175.48,175.4,10.05928506]
[1740122303670,10.05928506,175.46,175.4,10.05928506]
[1740122304668,0.04181913,175.45,175.41,0.04124856]
[1740122310073,5.6991,175.43,175.41,0.04124856]
[1740122310469,0.04181913,175.45,175.41,0.04124856]
[1740122310676,10.10110419,175.45,175.41,0.04124856]
[1740122313077,15.79940419,175.45,175.41,0.04124856]
[1740122313378,10.10110419,175.45,175.41,0.04124856]
[1740122314480,10.10110419,175.45,175.41,5.74064856]
[1740122315277,10.10110419,175.45,175.41,0.04124856]
[1740122315478,10.10110419,175.45,175.42,5.6993]
[1740122315778,10.10110419,175.45,175.41,0.04124856]
[1740122316275,5.6987,175.44,175.41,0.04124856]
[1740122318277,5.6987,175.44,175.41,5.74074856]
[1740122319077,15.79960419,175.45,175.41,5.74074856]
[1740122320281,0.04181913,175.45,175.42,5.6991]
[1740122320486,10.10110419,175.45,175.41,0.04124856]
[1740122320880,10.10110419,175.45,175.43,5.699]
[1740122322081,15.79970419,175.45,175.41,5.74054856]
[1740122322884,10.05928506,175.43,175.41,0.04124856]
[1740122323684,10.05928506,175.43,175.41,5.74074856]
[1740122323885,10.05928506,175.43,175.41,0.04124856]
[1740122324985,15.75838506,175.43,175.41,0.04124856]
[1740122325784,10.05928506,175.43,175.41,5.74084856]
[1740122325983,10.05928506,175.43,175.41,0.04124856]
[1740122327485,15.75828506,175.43,175.41,0.04124856]
[1740122329286,10.05928506,175.43,175.41,0.04124856]
[1740122329480,5.6989,175.44,175.41,0.04124856]
[1740122330481,10.10110419,175.45,175.42,5.699]
[1740122331079,10.10110419,175.45,175.41,5.74084856]
[1740122332387,5.6988,175.44,175.41,5.74084856]
[1740122332585,10.10110419,175.45,175.41,5.74084856]
[1740122332986,15.79960419,175.45,175.41,5.74084856]
[1740122334784,15.79960419,175.45,175.42,5.699]
[1740122335883,10.10110419,175.45,175.43,5.699]
[1740122339891,10.10110419,175.45,175.42,5.6992]
[1740122339892,15.79950419,175.45,175.42,5.6992]
[1740122341192,10.10110419,175.45,175.41,0.04124856]
[1740122341393,10.10110419,175.45,175.42,5.6992]
[1740122341591,10.10110419,175.45,175.41,0.04124856]
[1740122342091,10.10110419,175.45,175.42,5.6992]
[1740122344188,10.10110419,175.45,175.41,0.04124856]
[1740122345291,10.10110419,175.45,175.42,5.6992]
[1740122345593,0.04181913,175.45,175.43,10.05928506]
[1740122346188,0.04181913,175.45,175.44,5.6987]
[1740122346494,10.05928506,175.51,175.43,10.05928506]
[1740122346690,20.88068811,175.53,175.46,10.05928506]
[1740122346997,10.05928506,175.53,175.46,10.05928506]
[1740122347496,0.03828574,175.51,175.48,0.03816803]
[1740122348492,0.03828574,175.51,175.49,5.6968]
[1740122348892,0.03828574,175.51,175.48,0.03816803]
[1740122349192,5.73488574,175.51,175.48,0.03816803]
[1740122349797,0.03828574,175.51,175.48,0.03816803]
[1740122350003,5.6968,175.5,175.48,0.03816803]
[1740122350294,10.05928506,175.49,175.48,0.03816803]
[1740122350595,15.75628506,175.49,175.48,0.03816803]
[1740122350797,10.05928506,175.49,175.41,0.54317118]
[1740122350990,10.05928506,175.46,175.41,0.54317118]
[1740122351887,0.0424432,175.45,175.42,0.04151371]
[1740122352493,5.7408432,175.45,175.42,0.04151371]
[1740122353990,0.0424432,175.45,175.42,0.04151371]
[1740122355298,0.0424432,175.45,175.43,5.6989]
[1740122355801,0.0424432,175.45,175.42,0.04151371]
[1740122358202,5.6987,175.44,175.42,0.04151371]
[1740122361507,0.0424432,175.45,175.42,0.04151371]
[1740122361714,5.7408432,175.45,175.42,5.74071371]
[1740122363113,0.0424432,175.45,175.42,5.74071371]
[1740122364209,5.7408432,175.45,175.42,5.74071371]
[1740122364409,0.0424432,175.45,175.42,0.04151371]
[1740122364610,5.7410432,175.45,175.42,0.04151371]
[1740122365913,0.0424432,175.45,175.43,5.6988]
[1740122367110,0.0424432,175.45,175.42,0.04151371]
[1740122367318,5.699,175.43,175.42,0.04151371]
[1740122368818,15.75798506,175.44,175.42,0.04151371]
[1740122369020,10.05928506,175.44,175.42,0.04151371]
[1740122369317,5.6987,175.44,175.42,0.04151371]
[1740122369521,0.0424432,175.45,175.42,10.10079877]
[1740122369712,0.0424432,175.45,175.44,10.05928506]
[1740122374517,0.0424432,175.45,175.42,10.10079877]
[1740122375223,0.0424432,175.45,175.42,15.79999877]
[1740122377325,0.0424432,175.45,175.43,5.699]
[1740122379924,0.0424432,175.45,175.42,15.79999877]
[1740122382225,0.0424432,175.45,175.42,10.10079877]
[1740122382421,0.0424432,175.45,175.43,5.6987]
[1740122383330,0.0424432,175.45,175.44,5.6987]
[1740122383831,1.7258,175.53,175.48,5.6971]
[1740122384125,1.7258,175.53,175.46,10.05928506]
[1740122384524,5.6966,175.51,175.48,5.6973]
[1740122384724,20.92840076,175.54,175.46,10.05928506]
[1740122384928,0.03611558,175.51,175.48,10.09559879]
[1740122385226,0.03611558,175.51,175.49,5.6968]
[1740122386025,0.03611558,175.51,175.48,15.79289879]
[1740122388223,0.03611558,175.51,175.48,10.09559879]
[1740122388435,0.03611558,175.51,175.49,5.697]
[1740122390329,0.03611558,175.51,175.5,5.6967]
[1740122390527,0.03611558,175.51,175.5,15.75598506]
[1740122393126,10.05928506,175.58,175.5,10.05928506]
[1740122393328,10.05928506,175.58,175.53,10.05928506]
[1740122393931,5.6947,175.57,175.53,15.75488506]
[1740122394330,5.73632625,175.57,175.53,15.79548335]
[1740122394526,5.6948,175.56,175.53,15.79548335]
[1740122395628,0.04162625,175.57,175.53,15.79548335]
[1740122395831,0.04162625,175.57,175.54,5.6952]
[1740122397432,5.73612625,175.57,175.54,5.6952]
[1740122397833,0.04162625,175.57,175.54,5.6952]
[1740122398335,5.73602625,175.57,175.54,5.6952]
[1740122399833,0.04162625,175.57,175.54,5.6952]
[1740122400032,0.04162625,175.57,175.53,10.09988335]
[1740122400434,5.695,175.56,175.53,10.09988335]
[1740122401340,5.73612625,175.57,175.53,10.09988335]
[1740122402440,5.73612625,175.57,175.54,5.6954]
[1740122403432,0.04162625,175.57,175.53,10.09988335]
[1740122403638,0.04162625,175.57,175.56,5.6948]
[1740122408342,5.6922,175.64,175.6,5.6932]
[1740122409343,5.73156758,175.64,175.6,5.730153]
[1740122410041,5.6925,175.63,175.6,0.036953]
[1740122410345,5.6925,175.63,175.6,10.09623806]
[1740122410641,0.03936758,175.64,175.6,10.09623806]
[1740122412136,5.73176758,175.64,175.6,15.78963806]
[1740122412332,0.03936758,175.64,175.6,15.78963806]
[1740122412531,5.73156758,175.64,175.6,15.78963806]
[1740122414342,5.73156758,175.64,175.6,10.09623806]
[1740122414546,0.03936758,175.64,175.61,5.6928]
[1740122414746,0.03936758,175.64,175.6,10.09623806]
[1740122415542,5.73166758,175.64,175.61,5.693]
[1740122416045,0.03936758,175.64,175.6,10.09623806]
[1740122416342,0.03936758,175.64,175.6,0.036953]
[1740122416544,10.09865264,175.64,175.6,0.036953]
[1740122416747,5.6931,175.62,175.6,0.036953]
[1740122420851,5.6931,175.61,175.6,0.036953]
[1740122421850,5.6929,175.62,175.6,0.036953]
[1740122422250,5.6931,175.61,175.6,0.036953]
[1740122422647,10.09865264,175.64,175.6,0.036953]
[1740122422846,0.03936758,175.64,175.6,0.036953]
[1740122424451,5.693,175.62,175.6,0.036953]
[1740122425245,5.6931,175.61,175.6,0.036953]
[1740122427555,5.6928,175.62,175.6,0.036953]
[1740122429055,5.6931,175.61,175.6,0.036953]
[1740122432355,0.03936758,175.64,175.6,0.036953]
[1740122432556,5.6929,175.62,175.6,0.036953]
[1740122433557,5.6926,175.63,175.6,5.730353]
[1740122433856,0.03936758,175.64,175.6,0.036953]
[1740122434056,0.03936758,175.64,175.61,5.6929]
[1740122434557,0.03936758,175.64,175.6,10.09623806]
[1740122435056,0.03936758,175.64,175.62,5.6926]
[1740122435258,0.03936758,175.64,175.62,10.05928506]
[1740122436056,0.03936758,175.64,175.63,5.6925]
[1740122437759,5.6904,175.7,175.65,5.6917]
[1740122438058,10.05928506,175.71,175.65,10.05928506]
[1740122438958,0.03707772,175.7,175.66,0.04044521]
[1740122439550,5.6909,175.69,175.66,0.04044521]
[1740122440059,0.03707772,175.7,175.66,0.04044521]
[1740122440760,5.6908,175.69,175.66,0.04044521]
[1740122441958,0.03707772,175.7,175.66,0.04044521]
[1740122443365,5.691,175.68,175.66,0.04044521]
[1740122443963,5.6908,175.69,175.66,0.04044521]
[1740122444962,5.6909,175.68,175.66,0.04044521]
[1740122445965,5.6907,175.69,175.66,0.04044521]
[1740122446168,5.6907,175.69,175.66,5.73194521]
[1740122446367,5.6907,175.69,175.66,0.04044521]
[1740122447665,0.03707772,175.7,175.67,10.05928506]
[1740122448057,0.03707772,175.7,175.68,5.6906]
[1740122448662,0.03707772,175.7,175.69,5.6905]
[1740122448870,0.03707772,175.7,175.69,15.74978506]
[1740122454766,5.6886,175.75,175.69,10.05928506]
[1740122454968,3.535,175.78,175.72,10.05928506]
[1740122455570,5.6891,175.74,175.72,10.05928506]
[1740122456671,5.72539801,175.75,175.72,10.05928506]
[1740122457272,0.03669801,175.75,175.72,15.74878506]
[1740122457466,0.03669801,175.75,175.72,10.05928506]
[1740122457981,5.6891,175.74,175.72,10.05928506]
[1740122458971,0.03669801,175.75,175.72,10.05928506]
[1740122459171,5.72539801,175.75,175.72,15.74878506]
[1740122459674,0.03669801,175.75,175.72,15.74878506]
[1740122460074,0.03669801,175.75,175.73,5.6892]
[1740122460270,0.03669801,175.75,175.72,10.05928506]
[1740122461269,0.03669801,175.75,175.74,15.74818506]
[1740122461670,0.03669801,175.75,175.74,10.05928506]
[1740122462975,10.05928506,175.82,175.74,10.05928506]
[1740122463181,10.05928506,175.82,175.76,10.05928506]
[1740122464172,10.05928506,175.82,175.77,0.03795189]
[1740122464374,5.6872,175.8,175.77,0.03795189]
[1740122464973,10.05928506,175.82,175.77,0.03795189]
[1740122465470,203.05928506,175.84,175.77,0.03795189]
[1740122465670,5.6873,175.8,175.77,0.03795189]
[1740122465969,5.6873,175.8,175.77,5.72585189]
[1740122466386,203.05928506,175.84,175.77,5.72585189]
[1740122466683,5.6864,175.82,175.78,15.74688506]
[1740122466876,10.05928506,175.84,175.78,15.74688506]
[1740122467078,10.05928506,175.84,175.78,10.05928506]
[1740122471383,5.6872,175.8,175.78,10.05928506]
[1740122472480,5.6865,175.82,175.78,15.74668506]
[1740122473082,5.6867,175.81,175.78,15.74668506]
[1740122473384,5.6867,175.81,175.78,10.05928506]
[1740122473585,5.6867,175.81,175.77,0.03795189]
[1740122473586,5.6867,175.81,175.8,10.05928506]
[1740122473786,1.8431,175.87,175.8,10.05928506]
[1740122473982,1.8431,175.87,175.82,10.05928506]
[1740122474177,1.8431,175.87,175.82,10.10063433]
[1740122474378,10.05928506,175.89,175.82,0.04134927]
[1740122474577,1.7677,175.9,175.84,10.05928506]
[1740122474776,5.6846,175.88,175.84,15.74488506]
[1740122474985,1.7677,175.9,175.84,10.05928506]
[1740122475384,5.6832,175.92,175.88,10.05928506]
[1740122475584,197.72544563,175.93,175.88,10.05928506]
[1740122475786,197.72544563,175.93,175.88,15.78227196]
[1740122476286,203.40844563,175.93,175.88,10.09817196]
[1740122476989,5.683,175.93,175.88,10.09817196]
[1740122477184,5.6832,175.92,175.88,10.09817196]
[1740122478490,5.6828,175.93,175.9,10.05928506]
[1740122479393,10.05928506,175.97,175.9,10.05928506]
[1740122479589,5.6832,175.92,175.9,10.05928506]
[1740122480794,10.05928506,175.97,175.9,10.05928506]
[1740122481192,5.1154,175.98,175.9,10.05928506]
[1740122481400,5.6834,175.92,175.9,10.05928506]
[1740122482002,5.6833,175.92,175.9,10.05928506]
[1740122482802,5.6834,175.91,175.9,10.05928506]
[1740122486694,5.6832,175.92,175.9,10.05928506]
[1740122487097,5.6824,175.95,175.9,15.74288506]
[1740122487295,15.17468506,175.98,175.92,10.05928506]
[1740122487699,5.6824,175.95,175.93,0.04034838]
[1740122488198,10.05928506,176.0,175.93,0.04034838]
[1740122488504,10.05928506,176.0,175.94,10.05928506]
[1740122488702,10.05928506,176.0,175.95,0.0431901]
[1740122488906,1.7944,176.02,175.96,10.05928506]
[1740122490099,5.6815,175.97,175.96,10.05928506]
[1740122490305,10.05928506,176.01,175.96,10.05928506]
[1740122492507,5.6815,175.97,175.96,10.05928506]
[1740122499207,5.6818,175.96,175.95,9.01e-05]
[1740122505516,10.1018888,175.97,175.95,9.01e-05]
[1740122505821,5.72430374,175.97,175.95,9.01e-05]
[1740122506219,0.04260374,175.97,175.95,9.01e-05]
[1740122506714,0.04260374,175.97,175.95,5.6821901]
[1740122506919,0.04260374,175.97,175.95,15.74147516]
[1740122508216,0.04260374,175.97,175.95,10.05937516]
[1740122508518,5.6818,175.96,175.95,9.01e-05]
[1740122516330,5.72420374,175.97,175.95,9.01e-05]
[1740122516627,0.04260374,175.97,175.95,9.01e-05]
[1740122516827,5.6818,175.96,175.95,9.01e-05]
[1740122523528,10.1018888,175.97,175.83,11.83598506]
[1740122523724,10.05928506,175.89,175.83,17.52188506]
[1740122523929,10.05928506,175.89,175.83,11.83598506]
[1740122524526,0.04325987,175.88,175.84,0.0389892]
[1740122524827,5.6853,175.86,175.84,0.0389892]
[1740122525427,0.04325987,175.88,175.84,0.0389892]
[1740122525632,5.685,175.87,175.84,0.0389892]
[1740122526339,0.04325987,175.88,175.84,5.7245892]
[1740122526637,0.04325987,175.88,175.84,0.0389892]
[1740122527832,5.6847,175.87,175.84,0.0389892]
[1740122528827,0.04325987,175.88,175.84,0.0389892]
[1740122529232,0.04325987,175.88,175.85,5.6853]
[1740122530528,0.04325987,175.88,175.87,15.74398506]
[1740122535829,0.04325987,175.88,175.85,10.05928506]
[1740122536034,5.685,175.86,175.84,0.0389892]
[1740122537235,5.6848,175.87,175.84,5.7243892]
[1740122537535,0.04325987,175.88,175.84,0.0389892]
[1740122538337,5.72795987,175.88,175.84,5.7245892]
[1740122539238,0.04325987,175.88,175.84,5.7245892]
[1740122539535,0.04325987,175.88,175.84,0.0389892]
[1740122539931,5.6848,175.87,175.84,0.0389892]
[1740122541438,5.6848,175.87,175.84,5.7245892]
[1740122544339,0.04325987,175.88,175.84,5.7245892]
[1740122544539,5.72775987,175.88,175.84,5.7245892]
[1740122544740,5.72775987,175.88,175.85,15.74438506]
[1740122545034,0.04325987,175.88,175.87,10.05928506]
[1740122545444,0.04325987,175.88,175.87,15.74398506]
[1740122545639,5.6828,175.93,175.87,10.05928506]
[1740122545835,5.6828,175.93,175.89,10.05928506]
[1740122546142,400.78473069,175.99,175.91,10.05928506]
[1740122546342,10.05928506,175.97,175.91,10.05928506]
[1740122546542,5.683,175.93,175.89,10.05928506]
[1740122546841,10.05928506,175.97,175.89,10.09609161]
[1740122547838,5.6834,175.92,175.89,10.09609161]
[1740122549444,10.05928506,175.97,175.89,10.09609161]
[1740122549644,5.1744,176.0,175.91,10.05928506]
[1740122549645,10.05928506,175.99,175.91,10.05928506]
[1740122549846,5.1744,176.0,175.91,10.05928506]
[1740122549847,10.05928506,175.97,175.91,10.05928506]
[1740122550041,10.05928506,175.97,175.93,0.04340342]
[1740122550746,5.6825,175.94,175.93,0.04340342]
[1740122556645,5.6842,175.89,175.85,15.74468506]
[1740122556949,10.05928506,175.91,175.85,10.05928506]
[1740122557145,10.05928506,175.93,175.85,10.05928506]
[1740122557449,5.6843,175.89,175.85,15.74458506]
[1740122557843,5.727821,175.89,175.85,15.78816307]
[1740122558245,0.043521,175.89,175.86,5.685]
[1740122559154,0.043521,175.89,175.87,5.6847]
[1740122559653,0.043521,175.89,175.88,5.6844]
[1740122560255,0.043521,175.89,175.87,15.74388506]
[1740122561051,0.043521,175.89,175.87,10.05928506]
[1740122561256,0.043521,175.89,175.88,5.6844]
[1740122571175,2.1e-05,175.89,175.88,5.6844]
[1740122580986,2.1e-05,175.89,175.88,15.74368506]
[1740122585888,5.6815,175.97,175.94,5.6823]
[1740122586186,5.6815,175.97,175.94,15.74158506]
[1740122586392,5.6815,175.97,175.94,10.05928506]
[1740122586983,5.6815,175.97,175.94,10.09960518]
[1740122587282,5.6813,175.98,175.95,5.6821]
[1740122587491,10.84888317,176.03,175.96,10.05928506]
[1740122587787,10.05928506,176.04,175.96,10.05928506]
[1740122587988,10.05928506,176.04,175.98,0.04364997]
[1740122587989,5.6805,176.01,175.98,0.04364997]
[1740122588189,201.28484563,176.05,176.0,10.05928506]
[1740122588981,5.6799,176.02,176.0,10.05928506]
[1740122589180,201.28484563,176.05,176.0,10.05928506]
[1740122589386,5.6802,176.02,176.0,10.05928506]
[1740122589990,201.28484563,176.05,176.0,10.05928506]
[1740122590190,5.6802,176.01,176.0,10.05928506]
[1740122590891,5.6802,176.01,175.99,10.05928506]
[1740122591095,3.5594,176.05,175.99,10.05928506]
[1740122591590,5.6805,176.01,175.99,10.05928506]
[1740122592095,3.5594,176.05,175.99,10.05928506]
[1740122592992,5.6805,176.0,175.99,10.05928506]
[1740122594094,5.6808,175.99,175.98,0.04364997]
[1740122594695,10.05928506,176.0,175.93,10.05928506]
[1740122594899,5.6825,175.94,175.93,10.05928506]
[1740122595295,10.05928506,175.96,175.91,10.05928506]
[1740122595794,10.05928506,175.98,175.91,10.05928506]
[1740122595993,0.04359459,175.95,175.92,0.04281846]
[1740122597498,5.683,175.93,175.92,0.04281846]
[1740122602193,5.683,175.93,175.92,1.846e-05]
[1740122603606,7.4495,175.93,175.92,1.846e-05]
[1740122606098,1.7665,175.93,175.92,1.846e-05]
[1740122606403,7.5,175.94,175.92,1.846e-05]
[1740122607907,0.04359459,175.95,175.92,10.05930352]
[1740122610207,5.6827,175.94,175.92,10.05930352]
[1740122610707,0.04359459,175.95,175.92,10.05930352]
[1740122610904,5.6828,175.93,175.92,10.05930352]
[1740122613915,0.04359459,175.95,175.92,10.05930352]
[1740122615411,5.6828,175.93,175.92,10.05930352]
[1740122616910,0.04359459,175.95,175.92,10.05930352]
[1740122617112,5.6827,175.94,175.92,10.05930352]
[1740122621216,0.04359459,175.95,175.92,10.05930352]
[1740122621413,5.6828,175.93,175.92,10.05930352]
[1740122622116,0.04359459,175.95,175.92,10.05930352]
[1740122622812,0.04359459,175.95,175.94,15.74178506]
[1740122624619,1.7144,176.03,175.94,10.05928506]
[1740122624813,1.7144,176.03,175.87,7.4]
[1740122624814,1.7144,176.03,176.0,10.05928506]
[1740122625814,0.03695206,176.03,176.0,10.09775711]
[1740122626317,5.71655206,176.03,176.0,10.09775711]